Cogmind - Beta 13 @@@ ROGUE MODE // 2024.04.02 @ 21:52:47 Player: Borbus Result: Destroyed by Y-45 Defender with Beam Rifle Performance ------------- Evolutions (1) 500 Regions Visited (3) 600 Robots Destroyed (89) 445 Value Destroyed (2586) 2586 Prototype IDs (1) 20 Alien Tech Used (0) 0 Bonus (-357) -357 TOTAL SCORE: 3794 Bonus ------- High Alert Combat Kills 192 Friendly Fire -549 Cogmind --------- Core Integrity 0/400 Matter 103/300 Energy 131/250 System Corruption 0% Temperature Cool (9) Movement Core (500) Ox9 Location -9/Storage Parts ------- > --- POWER (1) -------- Ion Engine > --- PROPULSION (2) --- (None) > --- UTILITY (4) ------ Large Storage Unit Targeting Computer Improved Targeting Computer > --- WEAPON (2) ------- Improved Heavy Machine Gun > --- INVENTORY (15) --- Improved Ion Engine Light Treads Improved Heat Sink High-capacity Storage Unit High-capacity Matter Pod (200) Improved Sensor Array Targeting Computer Targeting Computer Targeting Computer Propulsion Shielding Advanced Beam Cannon Missile Launcher Peak State ------------ > --- POWER ------------ Ion Engine > --- PROPULSION ------- Light Treads Light Treads > --- UTILITY ---------- Large Storage Unit Targeting Computer Improved Targeting Computer Drone Bay > --- WEAPON ----------- Shotgun Missile Launcher > --- INVENTORY -------- Ion Engine Improved Ion Engine Light Treads Improved Heat Sink High-capacity Storage Unit High-capacity Matter Pod Improved Sensor Array Targeting Computer Targeting Computer Targeting Computer Propulsion Shielding Particle Gun Advanced Beam Cannon Improved Heavy Machine Gun Missile Launcher [Rating: 20] Favorites ----------- Power Ion Engine Engine Ion Engine Propulsion Light Treads Treads Light Treads Wheel Compact Wheel Utility Targeting Computer Device Improved Heat Sink Storage Large Storage Unit Processor Targeting Computer Protection Light Armor Plating Weapon Beam Cannon Energy Gun Particle Gun Energy Cannon Beam Cannon Ballistic Gun Shotgun Ballistic Cannon Light Cannon Launcher Missile Launcher Build | -11 -10 -9 -9 ------- Run | Yrd Mat Mat Sto Slots Evolved 2 | . . 2 . Power . | . . . . Propulsion . | . . . . Utility 2 | . . 2 . Weapon . | . . . . Parts Attached 65 | 8 13 23 21 Power 10 | 1 2 5 2 Engine 10 | 1 2 5 2 Core . | . . . . Reactor . | . . . . Propulsion 13 | 4 2 6 1 Treads 11 | 2 2 6 1 Leg . | . . . . Wheel 2 | 2 . . . Hover . | . . . . Flight . | . . . . Utility 23 | 1 5 6 11 Device 13 | . 2 1 10 Storage 4 | 1 1 2 . Processor 5 | . 2 3 . Hackware . | . . . . Protection 1 | . . . 1 Artifact . | . . . . Weapon 19 | 2 4 6 7 Energy Gun 3 | . . 1 2 Energy Cannon 5 | . 2 3 . Ballistic Gun 5 | 2 . 1 2 Ballistic Cannon 2 | . 2 . . Launcher 4 | . . 1 3 Special Weapon . | . . . . Impact Weapon . | . . . . Slashing Weapon . | . . . . Piercing Weapon . | . . . . Special Melee Weapon . | . . . . Unidentified Prototypes 1 | . . . 1 Parts Lost 12 | . 1 3 8 Power 2 | . 1 . 1 Propulsion 3 | . . . 3 Utility 2 | . . 1 1 Weapon 5 | . . 2 3 Highest Loss Streak 7 | . 1 2 7 To Critical Strikes . | . . . . Average Slot Usage (%) 98 | . 97 99 97 Engine 11 | . 13 11 10 Treads 23 | . 27 21 21 Device 8 | . 6 9 9 Storage 11 | . 14 11 11 Processor 17 | . 6 23 22 Energy Gun 3 | . . 1 9 Energy Cannon 6 | . 10 9 . Ballistic Gun 6 | . 4 4 9 Ballistic Cannon 5 | . 13 3 . Launcher 1 | . . 2 2 Naked Turns . | . . . . Heaviest Build 40 | 14 22 35 40 Greatest Support 40 | 40 40 40 40 Greatest Overweight (x) 1 | . . 1 1 Average Overweight (x) . | . . . . Largest Inventory Capacity 20 | 8 10 20 15 Average Capacity 12 | 6 9 12 15 Most Carried 15 | 2 10 15 15 Average Carried 10 | . 6 11 14 Final Capacity 15 | 8 10 15 15 Final Carried 15 | . 10 15 12 Class Distribution -------------------- 61% | Mutant 38% | Scavenger-Mutant Dominant Class ---------------- Mutant | -10/Materials Scavenger-Mutant | -9/Materials Scavenger-Mutant | -9/Storage Resources | -11 -10 -9 -9 ----------- Run | Yrd Mat Mat Sto Matter Collected 1828 | 198 495 756 379 Remotely . | . . . . Salvage Created 2755 | . 458 1414 883 Parts 187 | . 44 91 52 Haulers Intercepted 1 | . . 1 . Recyclers Shooed 4 | . . . 4 Parts Field Recycled . | . . . . Retrieved Matter . | . . . . Parts Self-Destructed . | . . . . Prevented . | . . . . Kills | -11 -10 -9 -9 ------- Run | Yrd Mat Mat Sto Combat Hostiles Destroyed 68 | . 13 32 23 Guns 24 | . 2 5 17 Cannons 33 | . 11 22 . AOE 10 | . . 4 6 Classes Destroyed 12 | . 5 6 1 Worker 3 | . 1 2 . Builder 1 | . . 1 . Hauler 1 | . . 1 . Recycler 4 | . . 2 2 Mechanic 3 | . . 2 1 Operator 1 | . 1 . . Drone 3 | . . . 3 Watcher 8 | . 3 3 2 Swarmer 10 | . 3 4 3 Grunt 43 | . 10 22 11 Duelist 2 | . . 1 1 Sentry 13 | . . 5 8 Best Kill Streak 7 | . 4 5 7 Combat Bots Only 4 | . 3 4 4 Max Kills in Single Turn 3 | . 1 2 3 Gunslinging . | . . . . Exploded 2 | . . 1 2 Melee . | . . . . Uniques/NPCs Destroyed . | . . . . Combat | -11 -10 -9 -9 -------- Run | Yrd Mat Mat Sto Hostile Shots Fired 295 | . 75 101 119 Missed 80 | . 23 29 28 Damage Taken 2913 | . 520 1076 1317 Core 480 | . 76 119 285 Absorbed by Shields . | . . . . Regen/Repaired (Parts) 387 | . 199 158 30 Core Remaining (%) 84 | 100 69 . . Volleys Fired 186 | . 40 84 62 Largest 2 | . 2 2 2 Hottest 120 | . 120 95 88 Shots Fired 309 | . 78 131 100 Gun 135 | . 22 31 82 Cannon 148 | . 56 92 . Launcher 26 | . . 8 18 Special . | . . . . Kinetic 155 | . 60 52 43 Thermal 128 | . 18 71 39 Explosive 26 | . . 8 18 Electromagnetic . | . . . . Robot Hit Streak 22 | . 7 22 19 Robot Miss Streak 4 | . 4 3 3 Penetration Max . | . . . . Secondary Targets 3 | . . 1 2 Max Gunslinging Chain 1 | . . 1 1 Shots Hit Robots 215 | . 38 96 81 Core Hits 137 | . 20 59 58 Critical Kills 1 | . . 1 . Critical Parts Destroyed . | . . . . Critical Strikes 3 | . . 2 1 Burn 1 | . . . 1 Meltdown 1 | . . 1 . Blast 1 | . . 1 . Melee Attacks . | . . . . Impact . | . . . . Slashing . | . . . . Piercing . | . . . . Sneak Attacks . | . . . . Combat Hostiles . | . . . . Follow-up Attacks . | . . . . Damage Inflicted 5341 | . 676 2329 2336 Guns 1661 | . 125 358 1178 Cannons 1839 | . 550 1289 . Explosions 1840 | . . 682 1158 Melee . | . . . . Ramming 1 | . 1 . . Kinetic 1982 | . 518 759 705 Thermal 1518 | . 157 888 473 Explosive 1840 | . . 682 1158 Electromagnetic . | . . . . Impact . | . . . . Slashing . | . . . . Piercing . | . . . . Highest Corruption 1 | . 1 . . Average Corruption 1 | . 1 . . Corruption Purged . | . . . . Corruption Blocked . | . . . . Effects 4 | . 4 . . Message Errors 2 | . 2 . . Misfires 2 | . 2 . . Overload Shots . | . . . . Overflow Damage 55 | . . 11 44 Projectiles . | . . . . Explosions 55 | . . 11 44 Melee . | . . . . Knockbacks 4 | . 3 1 . Impact . | . . . . Kinetic 4 | . 3 1 . Secondary . | . . . . Self-Inflicted Damage 154 | . . 99 55 Shots 4 | . . 3 1 Rammed 2 | . 2 . . Targets Rammed 2 | . 2 . . Kicked . | . . . . Crushed . | . . . . Highest Temperature 304 | . 258 151 304 Average Temperature 71 | . 60 60 93 Received Heat Transfer 1017 | . 129 429 459 Effects 4 | . 4 . . Energy Bleed 1 | . 1 . . Interference 3 | . 3 . . Siege Activations . | . . . . Robots Corrupted . | . . . . Combat Hostiles . | . . . . Parts Fried . | . . . . Impact Corruptions . | . . . . Robots Melted 1 | . . 1 . Combat Hostiles 1 | . . 1 . Parts Melted 5 | . . 3 2 Heat Transferred 3404 | . 333 1887 1184 Parts Sabotaged . | . . . . Parts Stolen . | . . . . Parts Stripped . | . . . . Power Chain Reactions . | . . . . Alert | -11 -10 -9 -9 ------- Run | Yrd Mat Mat Sto Peak Influence 665 | . 206 665 462 Initial 219 | . . . 219 Average 296 | . 93 447 338 Maximum Alert Level 2 | . 1 2 2 Low Security (%) 34 | 100 89 9 . Level 1 29 | . 10 20 67 Level 2 36 | . . 70 32 Level 3 . | . . . . Level 4 . | . . . . Level 5 . | . . . . High Security . | . . . . Max Security . | . . . . Squads Dispatched 12 | . 3 5 4 Investigation 7 | . 2 2 3 Extermination . | . . . . Reinforcement 4 | . 1 2 1 Assault 1 | . . 1 . Garrison . | . . . . Intercept . | . . . . Searches Triggered . | . . . . Construction Impeded . | . . . . Haulers Reinforced . | . . . . Active Scanning Responses . | . . . . Cargo Convoy Interrupts . | . . . . Stealth | -11 -10 -9 -9 --------- Run | Yrd Mat Mat Sto Distress Signals 6 | . 3 1 2 Communications Jammed . | . . . . Distress Signals . | . . . . Times Spotted 99 | . 23 42 34 Peak Tracking Total 6 | . 5 5 6 Tactical Retreats 6 | . 2 3 1 Traps | -11 -10 -9 -9 ------- Run | Yrd Mat Mat Sto Traps Triggered 1 | . 1 . . Indirectly . | . . . . Trap Hack Attempts . | . . . . Triggered . | . . . . Disarmed 11 | . 11 . . Reprogrammed . | . . . . Reused . | . . . . Traps Extracted . | . . . . Installed . | . . . . Triggered . | . . . . Machines | -11 -10 -9 -9 ---------- Run | Yrd Mat Mat Sto Machines Disabled 5 | . 2 2 1 Max in Single Turn 1 | . 1 1 1 Machines Repaired . | . . . . Machines Dismantled . | . . . . Machines Sabotaged . | . . . . Overloaded Fab Kills . | . . . . Hacking | -11 -10 -9 -9 --------- Run | Yrd Mat Mat Sto Machines Accessed 17 | . 7 4 6 Terminals 12 | . 6 2 4 Fabricators . | . . . . Repair Stations 4 | . 1 2 1 Recycling Units 1 | . . . 1 Scanalyzers . | . . . . Garrison Access . | . . . . Total Hacks 56 | . 22 19 15 Successful 34 | . 14 11 9 Failed 22 | . 8 8 6 Catastrophic 4 | . . 3 1 Database Lockouts . | . . . . Manual 32 | . 13 9 10 Terminals 35 | . 17 9 9 Fabricators . | . . . . Repair Stations 18 | . 5 10 3 Recycling Units 3 | . . . 3 Scanalyzers . | . . . . Garrison Access . | . . . . Terminal Hacks 16 | . 10 3 3 Open Door 2 | . . . 2 Alert Level 5 | . 3 2 . Unreport Threat 2 | . . 1 1 Locate Traps 4 | . 4 . . Disarm Traps 3 | . 3 . . Fabricator Hacks . | . . . . Repair Station Hacks 15 | . 4 8 3 Scan Component 9 | . 2 5 2 Repair 6 | . 2 3 1 Recycling Unit Hacks 3 | . . . 3 Report Inventory 1 | . . . 1 Retrieve Matter 1 | . . . 1 Retrieve Components 1 | . . . 1 Scanalyzer . | . . . . Garrison Access Hacks . | . . . . Unauthorized Hacks . | . . . . Terminals . | . . . . Fabricators . | . . . . Repair Stations . | . . . . Recycling Units . | . . . . Scanalyzers . | . . . . Garrison Access . | . . . . Data Cores Recovered . | . . . . Used . | . . . . Hacking Detections 16 | . 7 4 5 Full Trace Events 10 | . 3 4 3 Feedback Events 1 | . 1 . . Corruption 1 | . 1 . . Feedback Blocked . | . . . . Robot Schematics Acquired . | . . . . Robots Built . | . . . . Authchips . | . . . . Time . | . . . . Total Robot Build Rating . | . . . . Part Schematics Acquired . | . . . . Parts Built . | . . . . Authchips . | . . . . Time . | . . . . Total Part Build Rating . | . . . . Parts Repaired 6 | . 2 3 1 Time 168 | . 52 78 38 Parts Recycled . | . . . . Recycled Matter . | . . . . Retrieved Matter 137 | . . . 137 Retrieved Components 9 | . . . 9 Parts Scanalyzed . | . . . . Part Schematics Acquired . | . . . . Parts Damaged . | . . . . Bothacking | -11 -10 -9 -9 ------------ Run | Yrd Mat Mat Sto Used RIF Installer . | . . . . Robots Hacked . | . . . . Non-combat . | . . . . Combat . | . . . . Robot Hacks Applied . | . . . . Relay Couplers Released . | . . . . Fabnet Peak Effective % . | . . . . Robots Rewired . | . . . . Allies Hacked . | . . . . Hacks Repelled . | . . . . Allies | -11 -10 -9 -9 -------- Run | Yrd Mat Mat Sto Total Allies . | . . . . Largest Group . | . . . . Highest-Rated Group . | . . . . Highest-Rated Ally . | . . . . Total Orders 7 | . . . 7 EXPLORE 7 | . . . 7 Ally Attacks . | . . . . Total Damage . | . . . . Kills . | . . . . Allies Corrupted . | . . . . Allies Melted . | . . . . Intel | -11 -10 -9 -9 ------- Run | Yrd Mat Mat Sto Robot Analysis Total . | . . . . Derelict Logs Recovered . | . . . . Drone Launches 21 | . . . 21 Drone Recoveries 7 | . . . 7 Exploration | -11 -10 -9 -9 ------------- Run | Yrd Mat Mat Sto Turns Passed 3989 | 93 1257 1584 1055 Spaces Moved 1724 | 55 612 697 360 Core 8 | 8 . . . Treads 1712 | 43 612 697 360 Legs . | . . . . Wheels 4 | 4 . . . Hover . | . . . . Flight . | . . . . Fastest Speed 50 | 50 160 160 160 Average Speed 159 | 138 160 160 160 Slowest Speed 240 | 160 160 240 240 Overloaded Moves . | . . . . Propulsion Burnouts . | . . . . Robots Hopped . | . . . . Cave-ins Triggered . | . . . . Exploration Rate (%) 54 | 5 87 50 77 Regions Visited 3 Branch Regions 1 Pre-discovered Areas . | . . . . Known Exits Taken . | . . . . Unknown Exits Taken 3 | 1 1 1 . Scrap Searched . | . . . . Spaces Dug . | . . . . Terrain Destroyed 177 | . . 75 102 Melee . | . . . . Projectile . | . . . . AOE 177 | . . 75 102 Terrain Rammed . | . . . . Walls Destroyed . | . . . . Machines Disabled . | . . . . Actions | -11 -10 -9 -9 --------- Run | Yrd Mat Mat Sto Total 2649 | 72 813 1032 732 Wait 568 | . 117 183 268 Move 1721 | 54 611 696 360 Hop . | . . . . Pick Up 71 | 8 22 30 11 Fast Attach . | . . . . Attach 25 | 6 5 7 7 Detach 1 | . 1 . . Swap 40 | 2 8 16 14 Drop 33 | 2 7 16 8 Fire 186 | . 40 84 62 Melee . | . . . . Ram . | . . . . Kick . | . . . . Crush 2 | . 2 . . Escape Stasis . | . . . . Rewire . | . . . . Trap . | . . . . Miscellaneous 2 | . . . 2 Route ------- -11/Scrapyard -10/Materials (discovered 4 exits: *Mat x3 / [*Min]) -9/Materials (discovered 2 exits: [*Mat] / *Sto) -9/Storage (discovered 1 exit: [*Mat]) History --------- Turn | Location | Event 6 | -11/Scrapyard | Discovered new exit (range 16) 94 | -11/Scrapyard | Entered Materials 310 | -10/Materials | Build established: Mutant 648 | -10/Materials | Discovered new exit (range 3) 832 | -10/Materials | Discovered new exit (range 8) 952 | -10/Materials | Discovered new exit (range 6) 999 | -10/Materials | Repaired Lgt. Treads 1027 | -10/Materials | Repaired Lgt. Treads 1104 | -10/Materials | Discovered new exit (range 8) 1351 | -10/Materials | Entered another Materials area 1351 | -9/Materials | Evolved 2 slots: Utility x2 2052 | -9/Materials | Discovered new exit (range 14) 2116 | -9/Materials | Repaired Lgt. Treads 2143 | -9/Materials | Repaired Ion Engine 2151 | -9/Materials | First assault squad dispatched 2416 | -9/Materials | Discovered new exit (range 16) 2462 | -9/Materials | Build established: Scavenger-Mutant 2569 | -9/Materials | Repaired Lgt. Treads 2935 | -9/Materials | Entered Storage 3227 | -9/Storage | Repaired Imp. Heat Sink 3257 | -9/Storage | Core integrity fell below 50% 3735 | -9/Storage | Lost 10 allies 3815 | -9/Storage | Discovered new exit (range 32) 3867 | -9/Storage | Build established: Mutant 3950 | -9/Storage | Core integrity fell below 20% 3965 | -9/Storage | Lost 4 allies 3990 | -9/Storage | Destroyed by Y-45 Defender with Beam Rifle Last Messages --------------- Y-45 Defender destroyed. The unstable cave ceiling collapses. W-16 Scout destroyed. Destroyed Com. Wheel. W-16 Scout destroyed. The unstable cave ceiling collapses. Critical hit (Burn: +37). Lgt. Treads destroyed. M-13 Machinist repairs Y-45 Defender. M-13 Machinist destroyed. The unstable cave ceiling collapses. Missile Launcher destroyed. Drone Bay destroyed. The unstable cave ceiling collapses. Lgt. Treads destroyed. Critical hit (Burn: +37). Ion Engine destroyed. Shotgun destroyed. Particle Gun destroyed. Identified Imp. Heavy Machine Gun. Map ----- +----------------------------------------------------+ | ?????????????????#### ##????# #????# """ | | #################################+##+####### | | # + """ | | # = ####### ##### """ | | # #?????# #???# """ | | ################+############+#####??# #???# | | ??????????????#[ ## #??# #???#####/# | | ??????????????# ## """ ! #### #??????# | | ??????????????# ## """ ""## ######## | | ??????????????# """ """ ## """ ""## | | ??????????????# """ """ ## % T"## ##+# | | ??????????????# """ """ ## """ ""## % # | | ??????????????# ## "R #### + | | ??????????????# !## """ % #??#%##### ## "" | | ??????????????############ % #??# #???# ## "" | | ??????????????????? #+###+#######/##### ## "" | | ??????????????????# """" # + %= %# ## | | ??????????????????# """" # # !%! ## ## | | ??????????????????# """" + # %[=[ ## ## | | ??????????????????# """" ## # """=""" ##+##### | | ??????????????????# ## + """ """ ## | | ??????????????????######### # """ """ ## | | ??????????????????????????# # ## """ | | ?????????????????########## # ## """ | | ????????????????## """ # ############ """ | | ????????????????# @# #?????????# | | ???????????????## # ############### | | ???????????????#"" gY# | | ???????????????#"T % m | | ???????????????#"" | | ???????????????## ########### | | ????????????????## #T###?# | | ?????????????????# + #?# | | ?????????????????##### # # #####?# | | ?????????????????????## # #?????# ! | | ??????????????????????## # #?????# | | ???????????????????????? # #?????# | | ???????????????????????? ## #%! # #?????######## | | ???????????????????????? #?##=# ##/###??????## | | ???????????????????????? #?# #??????"" | | ?????????????????????????#?# + #?????"T "" | | ???????????????????????????# # """#???????? "" | | ??????????????????????????### ## """#???????? "" | | ??????????????????????????#"" ## """#???????# | | ???????????###????????????#"Y ## #???????# | | ??????????# ????????????#"" #########???????# | | ??????????# ????????????### #???????????????#### | | ??????????+ ##+############# #??????????????????? | | ??????????# ## """ """ """ # #??????????????????? | | ?????????## ## """ """ """ # #??????????????????? | +----------------------------------------------------+ Best States ------------- Heat Dissipation 42 Energy Generation 12 Energy Capacity 265 Matter Stores 300 Matter Capacity 300 Sight Range 16 Robot Scan Range 14 Terrain Scan Density 10 Armor Coverage 150 Evasion (%) 40 Targeting Accuracy 16 Recoil Reduction 2 Item Schematics ----------------- None Robot Schematics ------------------ None Fabricated ------------ Nothing Alien Tech Used ----------------- None Achievements -------------- Backstab Release The Drones! root@ Challenges ------------ None Game ------ Seed ImpulseTimingCompressor Manual? 0 Play Time 00:48:57 Cumulative 11.5 hours Start 2024.04.02 @ 15:57:05 End 2024.04.02 @ 21:52:47 Sessions 5 Manual Loads 0 Difficulty Rogue Special Mode None Game No. 11 Rogue 11 Adventurer 0 Explorer 0 Win Type - Total 0 Types 0/0/0/0/0/0/0/0/0 Lore% 2 Gallery% 15 Achievement% 13 Wizard Run 0 Options --------- Layout 1 ASCII 0 Keyboard 0 Movement Numpad Keybinds 0 Fullscreen 1 Font 24/Smallcaps Map View 50x35 Zoom Use 0% Tactical HUD 0 Map Filters NONE Filters NONE Steam 1 RUN: ae8ab360-ddcc-4eb4-a934-dcd513efa76c